[Event "Icelandic Championship 2024"]
[Site "Mosfellsbaer"]
[Date "2024.04.25"]
[Round "9.6"]
[White "Gretarsson, Helgi Ass"]
[Black "Domalchuk-Jonasson, Aleksandr"]
[Result "1/2-1/2"]
[ECO "D35"]
[WhiteElo "2468"]
[BlackElo "2368"]
[Annotator "RC"]
[PlyCount "79"]
[EventDate "2024.04.16"]
[EventType "tourn"]
[EventCountry "ISL"]
[SourceTitle "playchess.com"]
[Source "ChessBase"]
[SourceQuality "1"]
[TimeControl "40/5400+30:1800+30"]

1. d4 {[%emt 0:00:03]} Nf6 {[%emt 0:02:54]} 2. c4 {[%emt 0:00:04]} e6 {[%emt 0:00:23]} 3. Nf3 {[%emt 0:00:07]} d5 {[%emt 0:00:32]} 4. Nc3 {[%emt 0:00:06]} Nbd7 {[%emt 0:00:16]} 5. Bf4 {[%emt 0:00:16]} Bb4 {[%emt 0:00:50]} 6. cxd5 {[%emt 0:03:59]} exd5 {[%emt 0:00:14]} 7. Qc2 {[%emt 0:19:42]} Ne4 {[%emt 0:07:13]} 8. e3 {[%emt 0:01:44]} g5 {[%emt 0:00:12]} 9. Be5 {[%emt 0:05:35]} Nxe5 {[%emt 0:00:06]} 10. Nxe5 {[%emt 0:01:05]} c6 {[%emt 0:00:04]} 11. Bd3 {[%emt 0:02:03]} f6 {[%emt 0:00:07]} 12. Nf3 {[%emt 0:06:29]} Bf5 {[%emt 0:03:01]} 13. h4 {[%emt 0:12:14]} g4 {[%emt 0:12:51]} 14. Nd2 {[%emt 0:01:12]} Qe7 {[%emt 0:04:01]} 15. Ke2 {[%emt 0:16:08]} Nxc3+ {[%emt 0:12:23]} 16. bxc3 {[%emt 0:00:17]} Bxd3+ {[%emt 0:00:05]} 17. Qxd3 {[%emt 0:00:07]} Bd6 {[%emt 0:00:18]} 18. c4 {[%emt 0:07:13]} O-O {[%emt 0:06:46]} 19. cxd5 {[%emt 0:01:14]} cxd5 {[%emt 0:00:45]} 20. Qf5 {[%emt 0:00:22]} Kh8 {[%emt 0:00:52]} 21. Qxd5 {[%emt 0:06:22]} f5 {[%emt 0:12:46]} 22. Nc4 {[%emt 0:00:08]} Bc7 {[%emt 0:00:12]} 23. Qc5 {[%emt 0:10:10]} Qg7 {[%emt 0:00:37]} 24. g3 {[%emt 0:00:53]} Rac8 {[%emt 0:01:12]} 25. Qd5 {[%emt 0:00:10]} Rfd8 {[%emt 0:09:28]} 26. Qxb7 {[%emt 0:00:30]} Qg6 {[%emt 0:04:38]} 27. Rhc1 {[%emt 0:00:48]} Qe6 {[%emt 0:01:07]} 28. Nd2 {[%emt 0:04:25]} Bb6 {[%emt 0:11:03]} 29. Nb3 {[%emt 0:00:07]} Rc4 {[%emt 0:01:34]} 30. Kf1 {[%emt 0:00:37]} Rd7 {[%emt 0:02:38]} 31. Qa6 {[%emt 0:00:42]} Rxc1+ {[%emt 0:03:00]} 32. Rxc1 {[%emt 0:00:01]} f4 {[%emt 0:00:05]} 33. Nc5 {[%emt 0:00:59]} Qc6 {[%emt 0:00:19]} 34. gxf4 {[%emt 0:01:01]} Qh1+ {[%emt 0:02:01]} 35. Ke2 {[%emt 0:00:01]} Qxc1 {[%emt 0:00:04]} 36. Nxd7 {[%emt 0:00:05]} Qc2+ {[%emt 0:00:03]} 37. Ke1 {[%emt 0:00:20]} Qc1+ {[%emt 0:00:24]} 38. Ke2 {[%emt 0:00:11]} Qc2+ {[%emt 0:00:01]} 39. Kf1 {[%emt 0:00:43]} Qc1+ {[%emt 0:00:07]} 40. Ke2 {[%emt 0:00:13]} 1/2-1/2

[Event "Icelandic Championship 2024"]
[Site "Mosfellsbaer"]
[Date "2024.04.26"]
[Round "10.2"]
[White "Ptacnikova, Lenka"]
[Black "Prudnykova, Olga"]
[Result "0-1"]
[ECO "D85"]
[WhiteElo "2127"]
[BlackElo "2263"]
[Annotator "RC"]
[PlyCount "80"]
[EventDate "2024.04.16"]
[EventType "tourn"]
[EventCountry "ISL"]
[SourceTitle "playchess.com"]
[Source "ChessBase"]
[SourceQuality "1"]
[TimeControl "40/5400+30:1800+30"]

1. c4 {[%emt 0:00:06]} Nf6 {[%emt 0:00:15]} 2. Nc3 {[%emt 0:00:38]} d5 {[%emt 0:00:18]} 3. cxd5 {[%emt 0:00:05]} Nxd5 {[%emt 0:00:03]} 4. d4 {[%emt 0:01:47]} g6 {[%emt 0:01:02]} 5. e4 {[%emt 0:00:21]} Nxc3 {[%emt 0:00:05]} 6. bxc3 {[%emt 0:00:02]} c5 {[%emt 0:00:30]} 7. Nf3 {[%emt 0:00:53]} Bg7 {[%emt 0:00:09]} 8. Rb1 {[%emt 0:00:32]} O-O {[%emt 0:03:33]} 9. Be2 {[%emt 0:00:24]} Nc6 {[%emt 0:01:26]} 10. d5 {[%emt 0:00:28]} Ne5 {[%emt 0:03:05]} 11. Nxe5 {[%emt 0:00:05]} Bxe5 {[%emt 0:00:05]} 12. Qd2 {[%emt 0:00:05]} Qa5 {[%emt 0:02:26]} 13. Rb3 {[%emt 0:00:07]} c4 {[%emt 0:07:10]} 14. Bxc4 {[%emt 0:07:31]} Bd7 {[%emt 0:00:04]} 15. Be2 {[%emt 0:06:04]} Ba4 {[%emt 0:11:06]} 16. Rb4 {[%emt 0:06:12]} b5 {[%emt 0:17:50]} 17. f4 {[%emt 0:09:40]} Bxc3 {[%emt 0:03:42]} 18. Qxc3 {[%emt 0:00:05]} Rfc8 {[%emt 0:04:19]} 19. Bc4 {[%emt 0:00:18]} bxc4 {[%emt 0:09:21]} 20. Bd2 {[%emt 0:17:54]} Bc2 {[%emt 0:09:17]} 21. Qxc2 {[%emt 0:25:25]} c3 {[%emt 0:00:14]} 22. Rb1 {[%emt 0:04:17]} cxd2+ {[%emt 0:00:45]} 23. Qxd2 {[%emt 0:00:06]} Qa4 {[%emt 0:01:09]} 24. O-O {[%emt 0:03:40]} Rc2 {[%emt 0:05:32]} 25. Qe3 {[%emt 0:00:33]} Rac8 {[%emt 0:01:08]} 26. f5 {[%emt 0:02:52]} Qxa2 {[%emt 0:15:00]} 27. Qg3 {[%emt 0:03:04]} R8c3 {[%emt 0:03:47]} 28. fxg6 {[%emt 0:03:11]} hxg6 {[%emt 0:00:20]} 29. Rb8+ {[%emt 0:00:43]} Rc8 {[%emt 0:00:20]} 30. Rb7 {[%emt 0:03:32]} Rc1 {[%emt 0:00:35]} 31. Rb8 {[%emt 0:02:43]} Rxf1+ {[%emt 0:00:03]} 32. Kxf1 {[%emt 0:00:37]} Qc4+ {[%emt 0:00:49]} 33. Kf2 {[%emt 0:00:46]} Qd4+ {[%emt 0:00:33]} 34. Kf1 {[%emt 0:00:34]} Rxb8 {[%emt 0:00:42]} 35. Qxb8+ {[%emt 0:00:04]} Kg7 {[%emt 0:00:02]} 36. Qb1 {[%emt 0:01:48]} a5 {[%emt 0:00:28]} 37. Ke2 {[%emt 0:00:26]} a4 {[%emt 0:00:14]} 38. h4 {[%emt 0:00:55]} a3 {[%emt 0:00:16]} 39. Kf3 {[%emt 0:00:08]} Qb2 {[%emt 0:00:34]} 40. Qe1 {[%emt 0:00:16]} a2 {[%emt 0:00:09]} 0-1

[Event "Icelandic Championship 2024"]
[Site "Mosfellsbaer"]
[Date "2024.04.26"]
[Round "10.3"]
[White "Stefansson, Vignir Vatnar"]
[Black "Stefansson, Hannes"]
[Result "1/2-1/2"]
[ECO "E07"]
[WhiteElo "2459"]
[BlackElo "2493"]
[Annotator "TA"]
[PlyCount "50"]
[EventDate "2024.04.16"]
[EventType "tourn"]
[EventCountry "ISL"]
[SourceTitle "playchess.com"]
[Source "ChessBase"]
[SourceQuality "1"]
[TimeControl "40/5400+30:1800+30"]

{[%evp 24,50,4,13,50,5,56,20,49,25,16,-38,-37,-37,-42,-31,-41,-26,-32,-41,-54,-47,-19,-20,-13,-18,-10,-13,0]} 1. d4 {[%emt 0:01:54]} Nf6 {[%emt 0:00:19]} 2. c4 {[%emt 0:00:21]} e6 {[%emt 0:00:40]} 3. g3 {[%emt 0:00:22]} Bb4+ {[%emt 0:00:38]} 4. Bd2 {[%emt 0:00:06]} Be7 {[%emt 0:00:23]} 5. Bg2 {[%emt 0:00:03]} d5 {[%emt 0:00:31]} 6. Nf3 {[%emt 0:00:03]} O-O {[%emt 0:00:29]} 7. O-O {[%emt 0:00:02]} c6 {[%emt 0:00:35]} 8. Bf4 {[%emt 0:00:05]} Nbd7 {[%emt 0:01:02]} 9. Nc3 {[%emt 0:00:11]} Nh5 {[%emt 0:07:47]} 10. Bc1 {[%emt 0:02:29]} Nhf6 {[%emt 0:00:46]} 11. Qd3 {[%emt 0:01:05]} b6 {[%emt 0:05:25]} 12. e4 {[%emt 0:00:10]} Ba6 {[%emt 0:01:21]} 13. b3 {[%emt 0:00:03]} c5 {[%emt 0:04:29]} 14. e5 {[%emt 0:15:03]} Ne8 {[%emt 0:01:50]} (14... dxc4 $1 $11 15. Qe2 (15. bxc4 Nd5 $11) 15... Nd5 16. Nxd5 exd5) 15. h4 {[%emt 0:03:26]} Rc8 {[%emt 0:05:07]} 16. Nb5 {[%emt 0:16:44]} cxd4 {[%emt 0:13:44]} 17. Qxd4 {[%emt 0:03:09]} ({Better is} 17. Rd1 $11) 17... dxc4 $15 {[%emt 0:00:21]} 18. bxc4 {[%emt 0:00:16]} Bxb5 $1 {[%emt 0:02:34]} 19. cxb5 {[%emt 0:00:25] [#]} Nxe5 $1 {[%emt 0:04:43]} 20. Qxe5 {[%emt 0:19:57] Qe2 would now be deadly.} Bf6 {[%emt 0:00:08]} 21. Qe4 {[%emt 0:08:37][%cal Of3g5] Black must now prevent Ng5!} Bxa1 {[%emt 0:00:26]} 22. Ba3 $1 {[%emt 0:00:06][%csl LRa1,LRf8][%cal Oa3f8] A strong pair of Bishops.} Nf6 {[%emt 0:04:00]} 23. Qa4 {[%emt 0:00:38][%cal Oa3f8] The position is equal.} Bc3 {[%emt 0:00:46]} 24. Bxf8 {[%emt 0:00:15]} Kxf8 {[%emt 0:03:40]} 25. Qxa7 {[%emt 0:00:11]} Ra8 {[%emt 0:02:18] Weighted Error Value: White=0.20 (precise) /Black=0.16 (very precise) .  Mistake:       	White=1     	Black=1      Inaccurate:     	White=2     	Black=2      OK:         	White=3     	Black=2      Best:        	---       	Black=3      Strong:       	White=1     	Black=1      Brilliant:      	---       	Black=1} 1/2-1/2

[Event "Icelandic Championship 2024"]
[Site "Mosfellsbaer"]
[Date "2024.04.26"]
[Round "10.4"]
[White "Birkisson, Bardur Orn"]
[Black "Heimisson, Hilmir Freyr"]
[Result "1-0"]
[ECO "B45"]
[WhiteElo "2169"]
[BlackElo "2361"]
[Annotator "RC"]
[PlyCount "79"]
[EventDate "2024.04.16"]
[EventType "tourn"]
[EventCountry "ISL"]
[SourceTitle "playchess.com"]
[Source "ChessBase"]
[SourceQuality "1"]
[TimeControl "40/5400+30:1800+30"]

1. e4 {[%emt 0:01:21]} c5 {[%emt 0:00:33]} 2. Nf3 {[%emt 0:00:40]} e6 {[%emt 0:00:12]} 3. d4 {[%emt 0:01:19]} cxd4 {[%emt 0:00:11]} 4. Nxd4 {[%emt 0:00:08]} Nc6 {[%emt 0:00:07]} 5. Nc3 {[%emt 0:01:35]} Nf6 {[%emt 0:00:10]} 6. a3 {[%emt 0:07:01]} d6 {[%emt 0:00:08]} 7. Be2 {[%emt 0:02:21]} Be7 {[%emt 0:00:09]} 8. O-O {[%emt 0:00:41]} O-O {[%emt 0:00:07]} 9. Be3 {[%emt 0:14:45]} Qc7 {[%emt 0:00:10]} 10. f4 {[%emt 0:03:34]} Nxd4 {[%emt 0:00:08]} 11. Qxd4 {[%emt 0:03:53]} b6 {[%emt 0:00:11]} 12. Rac1 {[%emt 0:14:38]} Bb7 {[%emt 0:09:41]} 13. Bf3 {[%emt 0:01:27]} e5 {[%emt 0:02:00]} 14. Qd3 {[%emt 0:02:12]} Bc6 {[%emt 0:24:02]} 15. Nb5 {[%emt 0:07:33]} Qb7 {[%emt 0:05:43]} 16. Nxd6 {[%emt 0:02:39]} Bxd6 {[%emt 0:00:10]} 17. Qxd6 {[%emt 0:07:08]} Rad8 {[%emt 0:07:00]} 18. Qxe5 {[%emt 0:00:00]} Rfe8 {[%emt 0:00:08]} 19. Qg5 {[%emt 0:00:00]} Bxe4 {[%emt 0:06:24]} 20. f5 {[%emt 0:00:20]} Qa6 {[%emt 0:12:16]} 21. Qg3 {[%emt 0:05:34]} Bxf3 {[%emt 0:07:03]} 22. Qxf3 {[%emt 0:00:46]} Qb5 {[%emt 0:01:51]} 23. b3 {[%emt 0:01:27]} Rc8 {[%emt 0:00:27]} 24. Bd4 {[%emt 0:00:53]} Ne4 {[%emt 0:09:10]} 25. c4 {[%emt 0:05:05]} Qc6 {[%emt 0:04:51]} 26. f6 {[%emt 0:00:43]} Qd6 {[%emt 0:01:09]} 27. Rcd1 {[%emt 0:00:43]} g6 {[%emt 0:01:18]} 28. Bb2 {[%emt 0:02:08]} Qc5+ {[%emt 0:01:01]} 29. Kh1 {[%emt 0:00:32]} Re6 {[%emt 0:01:58]} 30. Rd5 {[%emt 0:01:32]} Qf8 {[%emt 0:00:02]} 31. Qf4 {[%emt 0:03:20]} Nd6 {[%emt 0:03:18]} 32. Be5 {[%emt 0:01:32]} Ne8 {[%emt 0:00:19]} 33. b4 {[%emt 0:03:16]} Rec6 {[%emt 0:00:09]} 34. Rc1 {[%emt 0:01:14]} a5 {[%emt 0:02:22]} 35. bxa5 {[%emt 0:02:08]} Qxa3 {[%emt 0:00:15]} 36. axb6 {[%emt 0:00:22]} Rxb6 {[%emt 0:00:41]} 37. h3 {[%emt 0:00:39]} Qa6 {[%emt 0:01:09]} 38. Ra1 {[%emt 0:02:03]} Qb7 {[%emt 0:00:31]} 39. Qd4 {[%emt 0:01:38]} Rbc6 {[%emt 0:01:40]} 40. Rb5 {[%emt 0:00:38]} 1-0

[Event "Icelandic Championship 2024"]
[Site "Mosfellsbaer"]
[Date "2024.04.26"]
[Round "10.5"]
[White "Kjartansson, Gudmundur"]
[Black "Gretarsson, Helgi Ass"]
[Result "1/2-1/2"]
[ECO "C60"]
[WhiteElo "2480"]
[BlackElo "2468"]
[Annotator "RC"]
[PlyCount "113"]
[EventDate "2024.04.16"]
[EventType "tourn"]
[EventCountry "ISL"]
[SourceTitle "playchess.com"]
[Source "ChessBase"]
[SourceQuality "1"]
[TimeControl "40/5400+30:1800+30"]

1. e4 {[%emt 0:00:06]} e5 {[%emt 0:00:43]} 2. Nf3 {[%emt 0:00:11]} Nc6 {[%emt 0:00:08]} 3. Bb5 {[%emt 0:00:05]} Nge7 {[%emt 0:02:35]} 4. Nc3 {[%emt 0:00:24]} Ng6 {[%emt 0:00:33]} 5. h4 {[%emt 0:06:48]} Nd4 {[%emt 0:09:07]} 6. h5 {[%emt 0:20:31]} Nf4 {[%emt 0:02:32]} 7. g3 {[%emt 0:03:54]} Nxf3+ {[%emt 0:01:11]} 8. Qxf3 {[%emt 0:00:08]} Ne6 {[%emt 0:00:07]} 9. Ne2 {[%emt 0:04:50]} Bc5 {[%emt 0:17:09]} 10. d3 {[%emt 0:07:39]} c6 {[%emt 0:08:17]} 11. Bc4 {[%emt 0:00:21]} d6 {[%emt 0:00:06]} 12. Bd2 {[%emt 0:08:48]} a5 {[%emt 0:10:24]} 13. a3 {[%emt 0:03:40]} b5 {[%emt 0:06:30]} 14. Bb3 {[%emt 0:01:06]} a4 {[%emt 0:08:39]} 15. Ba2 {[%emt 0:00:09]} Ra7 {[%emt 0:00:19]} 16. Qg2 {[%emt 0:02:24]} Qb6 {[%emt 0:04:05]} 17. c3 {[%emt 0:00:52]} h6 {[%emt 0:00:41]} 18. f4 {[%emt 0:12:21]} Be3 {[%emt 0:03:25]} 19. Bxe3 {[%emt 0:00:31]} Qxe3 {[%emt 0:00:02]} 20. Qf2 {[%emt 0:00:11]} Qxf2+ {[%emt 0:07:47]} 21. Kxf2 {[%emt 0:00:05]} c5 {[%emt 0:00:55]} 22. Ke3 {[%emt 0:04:47]} f6 {[%emt 0:05:53]} 23. Ng1 {[%emt 0:08:50]} Kd8 {[%emt 0:04:50]} 24. Nf3 {[%emt 0:00:30]} Re8 {[%emt 0:00:05]} 25. Nh4 {[%emt 0:00:54]} Nf8 {[%emt 0:00:09]} 26. Kf3 {[%emt 0:04:13]} Kc7 {[%emt 0:01:05]} 27. Bf7 {[%emt 0:01:57]} Rd8 {[%emt 0:00:21]} 28. Bd5 {[%emt 0:02:04]} Kb6 {[%emt 0:00:34]} 29. Rhd1 {[%emt 0:00:21]} Bd7 {[%emt 0:02:43]} 30. d4 {[%emt 0:00:53]} Be8 {[%emt 0:01:01]} 31. g4 {[%emt 0:00:33]} exf4 {[%emt 0:01:03]} 32. Kxf4 {[%emt 0:00:26]} Bd7 {[%emt 0:00:34]} 33. Nf5 {[%emt 0:01:17]} Bxf5 {[%emt 0:00:08]} 34. gxf5 {[%emt 0:02:38]} c4 {[%emt 0:00:52]} 35. Bg8 {[%emt 0:01:39]} Re7 {[%emt 0:01:16]} 36. Rg1 {[%emt 0:00:53]} Nd7 {[%emt 0:01:07]} 37. Be6 {[%emt 0:00:36]} Nf8 {[%emt 0:00:07]} 38. Rad1 {[%emt 0:00:23]} Rde8 {[%emt 0:01:27]} 39. e5 {[%emt 0:01:03]} Nxe6+ {[%emt 0:00:42]} 40. fxe6 {[%emt 0:00:03]} dxe5+ {[%emt 0:00:43]} 41. dxe5 {[%emt 0:11:29]} Rxe6 {[%emt 0:01:15]} 42. Rxg7 {[%emt 0:00:57]} Rxe5 {[%emt 0:04:02]} 43. Rd6+ {[%emt 0:05:28]} Kc5 {[%emt 0:01:28]} 44. Rxf6 {[%emt 0:00:14]} Rxh5 {[%emt 0:00:01]} 45. Rgg6 {[%emt 0:05:09]} Rh4+ {[%emt 0:04:34]} 46. Kg3 {[%emt 0:00:04]} Rhe4 {[%emt 0:00:05]} 47. Rc6+ {[%emt 0:03:26]} Kd5 {[%emt 0:00:02]} 48. Rgd6+ {[%emt 0:01:23]} Ke5 {[%emt 0:00:01]} 49. Rxh6 {[%emt 0:00:23]} Rg8+ {[%emt 0:00:07]} 50. Rhg6 {[%emt 0:04:06]} Rxg6+ {[%emt 0:00:12]} 51. Rxg6 {[%emt 0:00:02]} Kd5 {[%emt 0:00:16]} 52. Kf3 {[%emt 0:00:14]} Re1 {[%emt 0:00:18]} 53. Rg5+ {[%emt 0:00:23]} Kc6 {[%emt 0:00:12]} 54. Rg6+ {[%emt 0:00:11]} Kc5 {[%emt 0:00:11]} 55. Rg5+ {[%emt 0:00:02]} Kc6 {[%emt 0:00:04]} 56. Rg6+ {[%emt 0:00:02]} Kc5 {[%emt 0:00:04]} 57. Rg5+ {[%emt 0:00:03]} 1/2-1/2

[Event "Icelandic Championship 2024"]
[Site "Mosfellsbaer"]
[Date "2024.04.26"]
[Round "10.6"]
[White "Ragnarsson, Dagur"]
[Black "Gretarsson, Hjorvar Steinn"]
[Result "1/2-1/2"]
[ECO "C00"]
[WhiteElo "2333"]
[BlackElo "2518"]
[Annotator "TA"]
[PlyCount "125"]
[EventDate "2024.04.16"]
[EventType "tourn"]
[EventCountry "ISL"]
[SourceTitle "playchess.com"]
[Source "ChessBase"]
[SourceQuality "1"]
[TimeControl "40/5400+30:1800+30"]

{[%evp 30,125,17,17,15,16,14,10,10,11,16,29,46,31,28,37,28,35,82,85,234,244,236,200,194,179,204,146,240,238,233,248,267,260,483,335,316,251,265,281,267,281,487,99,99,99,99,73,72,72,93,96,126,0,0,0,125,109,126,104,125,8,268,264,276,277,360,368,367,337,289,72,72,71,69,69,69,69,69,69,69,16,18,16,26,24,24,24,48,43,43,18,26,8,43,8,8,0]} 1. Nf3 {[%emt 0:00:15]} d5 {[%emt 0:02:40]} 2. g3 {[%emt 0:00:46]} Nf6 {[%emt 0:00:17]} 3. Bg2 {[%emt 0:00:19]} e6 {[%emt 0:00:59]} 4. O-O {[%emt 0:00:46]} Be7 {[%emt 0:00:21]} 5. d3 {[%emt 0:00:15]} c5 {[%emt 0:01:20]} 6. Nbd2 {[%emt 0:00:16]} Nc6 {[%emt 0:00:57]} 7. e4 {[%emt 0:00:15]} h6 {[%emt 0:02:14] C00: French: Unusual White 2nd moves.} 8. Re1 {[%emt 0:04:56]} O-O {[%emt 0:02:04]} 9. e5 {[%emt 0:01:55] 9.c3 injects fresh life into this line.} Nd7 {[%emt 0:00:10]} 10. h4 {[%emt 0:04:28]} b5 {[%emt 0:09:49]} 11. Nf1 {[%emt 0:00:26]} f6 {[%emt 0:03:08]} 12. exf6 {[%emt 0:04:28]} Nxf6 {[%emt 0:02:24]} 13. c4 $146 {[%emt 0:09:21]} ({Predecessor:} 13. Bf4 Bd6 14. Ne5 Qc7 15. Ng6 Re8 16. Ne3 Bd7 17. c3 Kh7 18. Bxd6 Qxd6 19. Nf4 {½-½ Van Arsdale,P (2084)-Somogyi,J (2238) Champion's League 07/D4 bd04 email 2007 [4]}) 13... bxc4 {[%emt 0:08:19]} 14. dxc4 {[%emt 0:00:10]} Rb8 {[%emt 0:01:11]} 15. Qc2 {[%emt 0:34:46]} Rf7 {[%emt 0:11:25]} 16. Bf4 {[%emt 0:08:23]} Bd6 {[%emt 0:07:17]} 17. cxd5 {[%emt 0:04:29]} exd5 {[%emt 0:14:44]} 18. Ne5 {[%emt 0:00:40]} Nxe5 {[%emt 0:03:46]} 19. Bxe5 {[%emt 0:00:16]} Bxe5 {[%emt 0:08:04]} 20. Rxe5 {[%emt 0:00:06]} Qd6 {[%emt 0:00:07]} 21. Rae1 {[%emt 0:01:10]} Bd7 {[%emt 0:02:51]} 22. Qg6 {[%emt 0:02:30]} Rb6 {[%emt 0:00:19]} (22... Rxb2 $2 23. Bxd5 Qxd5 24. Rxd5 Nxd5 25. Qd6 $18) 23. b3 {[%emt 0:05:47]} Qf8 {[%emt 0:03:19]} (23... c4 $14) 24. Qc2 $16 {[%emt 0:02:15]} (24. Bxd5 $2 Nxd5 25. Qh5 Nf6 $19) 24... Bc6 {[%emt 0:05:23]} (24... Qd6 $16) 25. Ne3 $18 {[%emt 0:01:16]} d4 {[%emt 0:00:57]} 26. Nf5 {[%emt 0:03:02]} (26. Rxc5 $6 dxe3 27. Rxc6 (27. Bxc6 Ne4 $11) 27... exf2+ 28. Qxf2 Rxc6 (28... Ne4 $2 29. Qc2 $18) 29. Bxc6 Kh8 $16) 26... Bxg2 {[%emt 0:00:09]} 27. Kxg2 {[%emt 0:00:06]} Kh8 {[%emt 0:03:10]} 28. Qxc5 {[%emt 0:03:30]} ({And not} 28. Rxc5 d3 29. Qc4 (29. Qxd3 $2 {is the wrong capture.} Qxc5 30. Ne3 Re6 $19) 29... Rb8 $11 (29... d2 30. Rd1 $14)) 28... d3 {[%emt 0:02:13]} (28... Qxc5 $16 {was necessary.} 29. Rxc5 d3) 29. Qd4 $18 {[%emt 0:04:18]} Rb8 {[%emt 0:02:43]} 30. Qxd3 {[%emt 0:02:08]} Ng4 {[%emt 0:00:32]} 31. Rd5 {[%emt 0:00:29]} Rc8 $2 {[%emt 0:00:38]} (31... Nf6 32. Rd4 Qc5) 32. f3 {[%emt 0:00:25]} Nf6 {[%emt 0:00:12]} 33. Rde5 {[%emt 0:01:25]} Nd7 {[%emt 0:02:33]} 34. Re7 $1 {[%emt 0:00:19]} Nc5 {[%emt 0:00:37]} 35. Rxf7 {[%emt 0:00:20]} Qxf7 $2 {[%emt 0:00:04]} (35... Nxd3 36. Rxf8+ Rxf8) 36. Nd6 $2 {[%emt 0:01:35]} (36. Qc2 $18 {and the rest is easy. Threatens to win with Nd6.} Rf8 37. g4 (37. Qxc5 Qxf5 38. Qxf5 Rxf5 $18)) 36... Nxd3 $16 {[%emt 0:00:36]} 37. Nxf7+ {[%emt 0:00:03]} Kg8 {[%emt 0:00:08]} 38. Rd1 {[%emt 0:00:43]} Rc2+ {[%emt 0:00:06]} 39. Kg1 {[%emt 0:00:11]} Nf2 {[%emt 0:00:41]} 40. Rd7 {[%emt 0:00:14]} Nh3+ {[%emt 0:00:04]} 41. Kh1 {[%emt 0:01:44]} (41. Kf1 $16) 41... Nf2+ $1 $11 {[%emt 0:00:08]} 42. Kg1 {[%emt 0:03:07]} (42. Kg2 $11) 42... Nh3+ $1 $16 {[%emt 0:00:10]} 43. Kf1 {[%emt 0:06:46]} Rf2+ {[%emt 0:00:07]} 44. Ke1 {[%emt 0:00:04]} Rxf3 {[%emt 0:00:11] [#]} 45. Rxa7 {[%emt 0:05:43]} (45. Nd6 $1 $16) 45... Rxg3 $2 {[%emt 0:03:22][%mdl 8192] [#]} (45... Rxf7 $11 {and Black stays safe.} 46. Rxf7 Kxf7) 46. b4 $1 $18 {[%emt 0:00:13]} Nf4 {[%emt 0:01:24]} 47. b5 {[%emt 0:00:36]} Nd5 {[%emt 0:00:38]} 48. a4 {[%emt 0:02:59]} Rb3 {[%emt 0:01:07]} 49. Nd6 {[%emt 0:01:26]} g5 {[%emt 0:00:10]} 50. Nf5 $2 {[%emt 0:01:10]} (50. h5 $18 {has better winning chances.}) 50... Rb1+ $16 {[%emt 0:07:58]} 51. Kd2 {[%emt 0:01:33]} gxh4 {[%emt 0:00:28]} 52. Nxh4 {[%emt 0:01:04]} Nb6 {[%emt 0:00:33]} 53. Nf5 {[%emt 0:01:21]} Nxa4 {[%emt 0:01:08]} 54. Nxh6+ {[%emt 0:00:18]} Kf8 {[%emt 0:01:42]} 55. Nf5 {[%emt 0:01:08]} ({White should play} 55. Rxa4 $14 Rxb5 56. Re4) 55... Rb4 $1 $11 {[%emt 0:02:28]} 56. Kd3 {[%emt 0:02:11]} Ke8 $1 {[%emt 0:02:18]} 57. Nd4 {[%emt 0:00:54]} Nc5+ {[%emt 0:00:18]} 58. Kc3 {[%emt 0:00:30]} Rb1 {[%emt 0:01:40]} 59. Kc4 {[%emt 0:01:12]} Nd7 {[%emt 0:00:27]} 60. Nb3 {[%emt 0:03:50]} Kd8 {[%emt 0:01:22]} 61. Kc3 {[%emt 0:00:17]} Kc8 {[%emt 0:00:57]} 62. Kc2 {[%emt 0:00:09]} Rh1 {[%emt 0:00:15]} 63. b6 {[%emt 0:00:33]} 1/2-1/2

[Event "Icelandic Championship 2024"]
[Site "Mosfellsbaer"]
[Date "2024.04.27"]
[Round "11.2"]
[White "Prudnykova, Olga"]
[Black "Ragnarsson, Dagur"]
[Result "1-0"]
[ECO "B30"]
[WhiteElo "2263"]
[BlackElo "2333"]
[Annotator "RC"]
[PlyCount "95"]
[EventDate "2024.04.16"]
[EventType "tourn"]
[EventCountry "ISL"]
[SourceTitle "playchess.com"]
[Source "ChessBase"]
[SourceQuality "1"]
[TimeControl "40/5400+30:1800+30"]

1. e4 {[%emt 0:00:02]} c5 {[%emt 0:00:13]} 2. Nf3 {[%emt 0:00:04]} Nc6 {[%emt 0:00:11]} 3. Nc3 {[%emt 0:00:20]} e5 {[%emt 0:00:29]} 4. Bc4 {[%emt 0:00:11]} Be7 {[%emt 0:00:23]} 5. d3 {[%emt 0:00:21]} d6 {[%emt 0:00:27]} 6. h4 {[%emt 0:00:27]} Bg4 {[%emt 0:00:46]} 7. Nd5 {[%emt 0:16:10]} Nf6 {[%emt 0:00:50]} 8. Ne3 {[%emt 0:02:38]} Bh5 {[%emt 0:00:33]} 9. Nf5 {[%emt 0:07:17]} O-O {[%emt 0:05:41]} 10. Bg5 {[%emt 0:02:47]} Nd4 {[%emt 0:04:24]} 11. Nxe7+ {[%emt 0:09:41]} Qxe7 {[%emt 0:00:08]} 12. c3 {[%emt 0:01:03]} Ne6 {[%emt 0:08:46]} 13. Qd2 {[%emt 0:06:03]} Nf4 {[%emt 0:07:56]} 14. Bxf4 {[%emt 0:02:41]} exf4 {[%emt 0:00:07]} 15. O-O-O {[%emt 0:00:30]} Ng4 {[%emt 0:04:37]} 16. Bd5 {[%emt 0:05:53]} Rab8 {[%emt 0:01:31]} 17. Rhf1 {[%emt 0:04:32]} Qf6 {[%emt 0:01:36]} 18. d4 {[%emt 0:01:53]} b5 {[%emt 0:02:52]} 19. g3 {[%emt 0:06:06]} b4 {[%emt 0:05:34]} 20. c4 {[%emt 0:00:22]} cxd4 {[%emt 0:10:33]} 21. gxf4 {[%emt 0:00:33]} Nh6 {[%emt 0:00:05]} 22. Nxd4 {[%emt 0:08:57]} Bxd1 {[%emt 0:00:17]} 23. Rxd1 {[%emt 0:00:03]} Qxh4 {[%emt 0:02:26]} 24. f3 {[%emt 0:01:27]} Kh8 {[%emt 0:03:00]} 25. Rg1 {[%emt 0:00:05]} g6 {[%emt 0:09:02]} 26. Nc6 {[%emt 0:02:29]} Rb6 {[%emt 0:04:55]} 27. Qd4+ {[%emt 0:00:19]} f6 {[%emt 0:00:31]} 28. Qd2 {[%emt 0:00:42]} Ng8 {[%emt 0:01:53]} 29. Kc2 {[%emt 0:06:51]} Rc8 {[%emt 0:10:04]} 30. Nd4 {[%emt 0:01:21]} Ne7 {[%emt 0:00:59]} 31. Be6 {[%emt 0:01:26]} Rc5 {[%emt 0:00:42]} 32. Nb3 {[%emt 0:00:52]} Rc7 {[%emt 0:03:48]} 33. Kb1 {[%emt 0:02:37]} Kg7 {[%emt 0:02:02]} 34. f5 {[%emt 0:03:12]} Qh6 {[%emt 0:03:44]} 35. f4 {[%emt 0:01:06]} Qh4 {[%emt 0:01:06]} 36. Nd4 {[%emt 0:01:20]} a6 {[%emt 0:02:02]} 37. fxg6 {[%emt 0:00:29]} hxg6 {[%emt 0:00:09]} 38. Bf5 {[%emt 0:04:43]} Kf7 {[%emt 0:00:51]} 39. Be6+ {[%emt 0:01:21]} Kf8 {[%emt 0:02:13]} 40. Bd5 {[%emt 0:01:02]} Nxd5 {[%emt 0:00:39]} 41. Ne6+ {[%emt 0:30:31]} Kf7 {[%emt 0:31:49]} 42. Qxd5 {[%emt 0:00:00]} Re7 {[%emt 0:00:00]} 43. f5 {[%emt 0:00:00]} Rb8 {[%emt 0:00:00]} 44. fxg6+ {[%emt 0:00:00]} Kg8 {[%emt 0:00:00]} 45. g7 {[%emt 0:00:00]} Rf7 {[%emt 0:00:00]} 46. Qxd6 {[%emt 0:00:00]} Qxe4+ {[%emt 0:00:00]} 47. Ka1 {[%emt 0:00:00]} Re8 {[%emt 0:00:00]} 48. Qf8+ {[%emt 0:00:00]} 1-0